fUSD/lending_fUSD_20240328
["ID","MTS","AMOUNT","RATE_DAILY","PERIOD"]
[320887396,1711665073739,-1517.12,0.00050136,120]
[320887397,1711665073748,-500.0,0.00050136,120]
[320887398,1711665073758,-1223.0,0.00050136,120]
[320887399,1711665073767,-1464.62,0.00050136,120]
[320887400,1711665073777,-500.0,0.00050136,120]
[320887401,1711665073786,-500.0,0.00050136,120]
[320887402,1711665073796,-500.0,0.00050136,120]
[320887403,1711665073808,-746.51,0.00050136,120]
[320887404,1711665073817,-945.77,0.00050136,120]
[320887405,1711665073826,-500.0,0.00050136,120]
[320887406,1711665073836,-500.0,0.00050136,120]
[320887407,1711665073846,-275.01,0.00050136,120]
[320887408,1711665073857,-500.0,0.00050136,120]
[320887409,1711665073866,-500.0,0.00050136,120]
[320887410,1711665073876,-918.65,0.00050136,120]
[320887411,1711665073888,-500.0,0.00050136,120]
[320887412,1711665073899,-1913.45,0.00050136,120]
[320887413,1711665073909,-900.64,0.00050136,120]
[320887414,1711665073918,-626.77,0.00050136,120]
[320887415,1711665073929,-782.99,0.00050136,120]
[320887416,1711665073940,-1427.67,0.00050136,120]
[320887417,1711665073949,-500.0,0.00050136,120]
[320887418,1711665073958,-500.0,0.00050136,120]
[320887419,1711665073969,-1454.01,0.00050136,21]
[320887420,1711665073979,-500.0,0.00050136,120]
[320887421,1711665073989,-657.71,0.00050136,120]
[320887422,1711665073998,-500.0,0.00050136,120]
[320887423,1711665074007,-500.0,0.00050136,80]
[320887424,1711665074017,-837.03,0.00050136,120]
[320887425,1711665074026,-500.0,0.00050136,120]
[320887426,1711665074035,-500.0,0.00050136,120]
[320887427,1711665074044,-500.0,0.00050136,120]
[320887428,1711665074054,-528.87,0.00050136,120]
[320887429,1711665074064,-1129.46,0.00050136,120]
[320887430,1711665074073,-500.0,0.00050136,120]
[320887431,1711665074082,-500.0,0.00050136,120]
[320887432,1711665074092,-3498.0,0.00050136,120]
[320887433,1711665074102,-500.0,0.00050136,120]
[320887434,1711665074111,-1420.31,0.00050136,120]
[320887435,1711665074120,-500.0,0.00050136,120]
[320887436,1711665074130,-1455.1,0.00050136,120]
[320887437,1711665074139,-500.0,0.00050136,120]
[320887438,1711665074148,-541.81,0.00050136,120]
[320887439,1711665074157,-698.59,0.00050136,120]
[320887440,1711665074167,-1015.71,0.00050136,120]
[320887441,1711665074176,-500.0,0.00050136,120]
[320887442,1711665074186,-558.31,0.00050136,120]
[320887443,1711665074196,-1189.37,0.00050136,120]
[320887444,1711665074205,-500.0,0.00050136,120]
[320887445,1711665074214,-5622.54,0.00050136,120]
[320887446,1711665074224,-500.0,0.00050136,120]
[320887447,1711665074234,-500.0,0.00050136,120]
[320887448,1711665074243,-4730.23,0.00050136,120]
[320887449,1711665074252,-918.14,0.00050136,120]
[320887450,1711665074261,-500.0,0.00050136,120]
[320887451,1711665074270,-500.0,0.00050136,120]
[320887452,1711665074279,-500.0,0.00050136,120]
[320887453,1711665074289,-595.53,0.00050136,120]
[320887454,1711665074298,-990.52,0.00050136,120]
[320887455,1711665074307,-926.93,0.00050136,120]
[320887456,1711665074316,-670.59,0.00050136,120]
[320887457,1711665074325,-1283.01,0.00050136,120]
[320887458,1711665074334,-1951.48,0.00050136,120]
[320887459,1711665074343,-1620.84,0.00050136,120]
[320887460,1711665074352,-500.0,0.00050136,120]
[320887461,1711665074361,-2941.99,0.00050136,120]
[320887462,1711665074370,-1181.83,0.00050136,120]
[320887463,1711665074379,-1172.19,0.00050136,120]
[320887464,1711665074388,-500.0,0.00050136,120]
[320887465,1711665074397,-3245.99,0.00050136,120]
[320887466,1711665074407,-1454.64,0.00050136,120]
[320887467,1711665074415,-500.0,0.00050136,120]
[320887468,1711665074424,-500.0,0.00050136,120]
[320887469,1711665074433,-500.0,0.00050136,120]
[320887470,1711665074442,-500.0,0.00050136,120]
[320887471,1711665074451,-4280.82,0.00050136,120]
[320887472,1711665074460,-2013.86,0.00050136,120]
[320887473,1711665074469,-931.2,0.00050136,120]
[320887474,1711665074478,-353.78,0.00050136,120]
[320887475,1711665074489,-500.0,0.00050136,120]
[320887476,1711665074498,-500.0,0.00050136,120]
[320887477,1711665074507,-1429.13,0.00050136,120]
[320887478,1711665074516,-968.39,0.00050136,120]
[320887479,1711665074525,-500.0,0.00050136,120]
[320887480,1711665074533,-500.0,0.00050136,120]
[320887481,1711665074542,-500.0,0.00050136,120]
[320887482,1711665074551,-500.0,0.00050136,120]
[320887483,1711665074560,-500.0,0.00050136,120]
[320887484,1711665074569,-500.0,0.00050136,120]
[320887485,1711665074579,-1032.01,0.00050136,120]
[320887486,1711665074588,-1380.24,0.00050136,120]
[320887487,1711665074597,-653.61,0.00050136,120]
[320887488,1711665074606,-1508.81,0.00050136,120]
[320887489,1711665074615,-2510.65,0.00050136,120]
[320887490,1711665074624,-500.0,0.00050136,120]
[320887491,1711665074633,-500.0,0.00050136,120]
[320887492,1711665074643,-1065.89,0.00050136,120]
[320887493,1711665074652,-1023.43,0.00050136,120]
[320887494,1711665074662,-158.62,0.00050136,120]
[320887495,1711665074671,-1879.67,0.00050136,120]
[320887496,1711665074680,-1070.3,0.00050136,120]
[320887497,1711665074690,-695.04,0.00050136,120]
[320887498,1711665074699,-926.67,0.00050136,120]
[320887499,1711665074708,-500.0,0.00050136,120]
[320887500,1711665074718,-500.0,0.00050136,120]
[320887501,1711665074730,-500.0,0.00050136,120]
[320887502,1711665074739,-500.0,0.00050136,120]
[320887503,1711665074748,-1108.88,0.00050136,120]
[320887504,1711665074757,-3172.21,0.00050136,120]
[320887505,1711665074766,-1071.01,0.00050136,120]
[320887506,1711665074775,-1046.04,0.00050136,120]
[320887507,1711665074784,-1172.74,0.00050136,120]
[320887508,1711665074793,-994.32,0.00050136,120]
[320887509,1711665074803,-555.92,0.00050136,120]
[320887510,1711665074813,-500.0,0.00050136,120]
[320887511,1711665074823,-500.0,0.00050136,2]
[320887512,1711665074832,-500.0,0.00050136,120]
[320887513,1711665074841,-500.0,0.00050136,120]
[320887514,1711665074850,-758.1,0.00050136,120]
[320887515,1711665074860,-500.0,0.00050136,120]
[320887516,1711665074869,-1318.87,0.00050136,120]
[320887517,1711665074879,-500.0,0.00050136,120]
[320887518,1711665074888,-797.78,0.00050136,120]
[320887519,1711665074897,-500.0,0.00050136,120]
[320887520,1711665074907,-1105.32,0.00050136,120]
[320887521,1711665074916,-422.88,0.00050136,120]
[320887522,1711665074925,-2181.31,0.00050136,120]
[320887523,1711665074935,-500.0,0.00050136,120]
[320887524,1711665074944,-733.01,0.00050136,120]
[320887525,1711665074954,-500.0,0.00050136,120]
[320887526,1711665074963,-500.0,0.00050136,120]
[320887527,1711665074972,-500.0,0.00050136,120]
[320887528,1711665074982,-625.18,0.00050136,120]
[320887529,1711665074991,-377.4,0.00050136,120]
[320887530,1711665075000,-544.46,0.00050136,120]
[320887531,1711665075009,-643.67,0.00050136,120]
[320887532,1711665075018,-500.0,0.00050136,120]
[320887533,1711665075028,-500.0,0.00050136,120]
[320887534,1711665075038,-2689.25,0.00050136,120]
[320887535,1711665075047,-154.58347963,0.00050139,60]
[320887536,1711665075056,-150.0,0.00050142,7]
[320887537,1711665075066,-155.2670859,0.00050146,60]
[320887538,1711665075075,-150.0,0.0005016,7]
[320887539,1711665075085,-150.0,0.00050163,7]
[320887540,1711665075094,-282.01218614,0.00050172,7]
[320887541,1711665075104,-237.12,0.00050183,2]
[320887542,1711665075113,-1887.60470078,0.00050188,2]
[320887543,1711665075123,-151.37538211,0.00050197,9]
[320887544,1711665075132,-150.0,0.000502,10]
[320887545,1711665075142,-150.0,0.00050201,7]
[320887546,1711665075152,-150.0,0.00050208,7]
[320887547,1711665075161,-150.0,0.00050209,7]
[320887548,1711665075170,-5856.74870135,0.00050212,2]
[320887549,1711665075180,-300.0,0.00050218,7]
[320887550,1711665075189,-150.0,0.00050221,7]
[320887551,1711665075198,-150.0,0.00050223,7]
[320887552,1711665075209,-150.0,0.00050225,10]
[320887553,1711665075219,-150.0,0.00050229,7]
[320887554,1711665075229,-154.14604573,0.00050231,7]
[320887555,1711665075241,-150.0,0.00050243,7]
[320887556,1711665075251,-150.0,0.00050247,7]
[320887557,1711665075261,-150.0,0.00050259,7]
[320887558,1711665075270,-1500.0,0.00050264,7]
[320887559,1711665075280,-152.73795542,0.00050271,60]
[320887560,1711665075290,-150.0,0.00050282,7]
[320887561,1711665075301,-150.0,0.00050284,7]
[320887562,1711665075311,-150.0,0.00050285,7]
[320887563,1711665075320,-150.0,0.00050302,7]
[320887564,1711665075329,-219.83247772,0.00050308,7]
[320887565,1711665075339,-150.0,0.00050318,7]
[320887566,1711665075348,-150.0,0.00050345,7]
[320887567,1711665075357,-150.0,0.0005038,7]
[320887568,1711665075367,-150.0,0.00050391,7]
[320887569,1711665075376,-277.636697,0.00050393,30]
[320887570,1711665075386,-2117.86935,0.00050393,30]
[320887571,1711665075395,-226.796476,0.00050393,30]
[320887572,1711665075404,-767.343968,0.00050393,30]
[320887573,1711665075413,-300.0,0.00050397,7]
[320887574,1711665075423,-150.0,0.000504,120]
[320887575,1711665075432,-345.77,0.000504,7]
[320887576,1711665075441,-150.0,0.00050402,7]
[320887577,1711665075450,-2780.62860487,0.00050407,2]
[320887578,1711665075459,-324.59911256,0.00050408,4]
[320887579,1711665075469,-964.77251522,0.00050408,4]
[320887580,1711665075478,-156.11913482,0.00050408,4]
[320887581,1711665075489,-4176.85107112,0.00050408,4]
[320887582,1711665075498,-1060.98377059,0.00050408,4]
[320887583,1711665075507,-241.31715363,0.00050409,5]
[320887584,1711665075515,-574.94928516,0.00050409,4]
[320887585,1711665075525,-1642.74285567,0.00050409,4]
[320887586,1711665075534,-608.3,0.0005041,120]
[320887587,1711665075543,-500.0,0.0005041,120]
[320887588,1711665075552,-500.0,0.0005041,120]
[320887589,1711665075561,-500.0,0.0005041,120]
[320887590,1711665075570,-500.0,0.0005041,120]
[320887591,1711665075579,-500.0,0.0005041,120]
[320887592,1711665075588,-296.34,0.0005041,120]
[320887593,1711665075598,-500.0,0.0005041,120]
[320887594,1711665075607,-500.0,0.0005041,120]
[320887595,1711665075616,-500.0,0.0005041,120]
[320887596,1711665075626,-496.4,0.0005041,120]
[320887597,1711665075635,-500.0,0.0005041,120]
[320887598,1711665075645,-500.0,0.0005041,120]
[320887599,1711665075655,-500.0,0.0005041,120]
[320887600,1711665075664,-223.23,0.0005041,120]
[320887601,1711665075674,-500.0,0.0005041,120]
[320887602,1711665075683,-500.0,0.0005041,120]
[320887603,1711665075693,-500.0,0.0005041,120]
[320887604,1711665075703,-203.61,0.0005041,120]
[320887605,1711665075716,-861.82,0.0005041,120]
[320887606,1711665075726,-328.32,0.0005041,120]
[320887607,1711665075736,-503.24,0.0005041,120]
[320887608,1711665075746,-500.0,0.0005041,120]
[320887609,1711665075757,-500.0,0.0005041,120]
[320887610,1711665075766,-500.0,0.0005041,120]
[320887611,1711665075776,-427.6,0.0005041,120]
[320887612,1711665075786,-500.0,0.0005041,120]
[320887613,1711665075796,-500.0,0.0005041,120]
[320887614,1711665075963,-500.0,0.0005041,120]
[320887615,1711665075972,-488.92,0.0005041,120]
[320887616,1711665075981,-266.77,0.0005041,120]
[320887617,1711665075991,-500.0,0.0005041,120]
[320887618,1711665076000,-500.0,0.0005041,120]
[320887619,1711665076010,-500.0,0.0005041,120]
[320887620,1711665076019,-245.64,0.0005041,120]
[320887621,1711665076028,-500.0,0.0005041,120]
[320887622,1711665076037,-500.0,0.0005041,120]
[320887623,1711665076047,-364.31,0.0005041,120]
[320887624,1711665076056,-500.0,0.0005041,120]
[320887625,1711665076066,-455.94,0.0005041,120]
[320887626,1711665076076,-526.46,0.0005041,120]
[320887627,1711665076085,-537.87,0.0005041,120]
[320887628,1711665076095,-493.45,0.0005041,120]
[320887629,1711665076104,-288.89,0.0005041,120]
[320887630,1711665076113,-223.2138631,0.0005041,120]
[320887631,1711665076122,-500.0,0.0005041,120]
[320887632,1711665076131,-500.0,0.0005041,120]
[320887633,1711665076142,-500.0,0.0005041,120]
[320887634,1711665076151,-541.77982657,0.0005041,120]
[320887635,1711665076160,-500.0,0.0005041,120]
[320887636,1711665076170,-378.19,0.0005041,120]
[320887637,1711665076181,-278.66,0.0005041,120]
[320887638,1711665076191,-252.72,0.0005041,120]
[320887639,1711665076200,-568.14,0.0005041,120]
[320887640,1711665076209,-500.0,0.0005041,2]
[320887641,1711665076218,-240.75,0.0005041,120]
[320887642,1711665076227,-425.7,0.0005041,120]
[320887643,1711665076237,-255.3,0.0005041,120]
[320887644,1711665076246,-500.0,0.0005041,2]
[320887645,1711665076254,-500.0,0.0005041,120]
[320887646,1711665076264,-500.0,0.0005041,120]
[320887647,1711665076273,-500.0,0.0005041,120]
[320887648,1711665076282,-500.0,0.0005041,120]
[320887649,1711665076290,-500.0,0.0005041,120]
[320887650,1711665076299,-500.0,0.0005041,120]
[320887651,1711665076308,-500.0,0.0005041,120]
[320887652,1711665076317,-292.58,0.0005041,120]
[320887653,1711665076326,-500.0,0.0005041,120]
[320887654,1711665076335,-500.0,0.0005041,120]
[320887655,1711665076345,-500.0,0.0005041,120]
[320887656,1711665076353,-500.0,0.0005041,120]
[320887657,1711665076363,-812.54,0.0005041,120]
[320887658,1711665076372,-500.0,0.0005041,120]
[320887659,1711665076381,-500.0,0.0005041,120]
[320887660,1711665076390,-500.0,0.0005041,120]
[320887661,1711665076399,-500.0,0.0005041,120]
[320887662,1711665076409,-500.0,0.0005041,120]
[320887663,1711665076418,-500.0,0.0005041,120]
[320887664,1711665076427,-500.0,0.0005041,120]
[320887665,1711665076437,-500.0,0.0005041,120]
[320887666,1711665076447,-453.04,0.0005041,120]
[320887667,1711665076457,-500.0,0.0005041,120]
[320887668,1711665076467,-500.0,0.0005041,120]
[320887669,1711665076476,-500.0,0.0005041,120]
[320887670,1711665076486,-500.0,0.0005041,120]
[320887671,1711665076495,-500.0,0.0005041,120]
[320887672,1711665076505,-500.0,0.0005041,120]
[320887673,1711665076514,-500.0,0.0005041,120]
[320887674,1711665076524,-519.13,0.0005041,120]
[320887675,1711665076533,-500.0,0.0005041,120]
[320887676,1711665076543,-500.0,0.0005041,120]
[320887677,1711665076553,-500.0,0.0005041,120]
[320887678,1711665076562,-500.0,0.0005041,120]
[320887679,1711665076571,-500.0,0.0005041,120]
[320887680,1711665076581,-500.0,0.0005041,120]
[320887681,1711665076590,-500.0,0.0005041,120]
[320887682,1711665076599,-500.0,0.0005041,120]
[320887683,1711665076609,-463.42,0.0005041,120]
[320887684,1711665076618,-500.0,0.0005041,120]
[320887685,1711665076628,-532.01,0.0005041,120]
[320887686,1711665076636,-500.0,0.0005041,120]
[320887687,1711665076646,-500.0,0.0005041,120]
[320887688,1711665076655,-500.0,0.0005041,120]
[320887689,1711665076665,-500.0,0.0005041,120]
[320887690,1711665076675,-562.67,0.0005041,120]
[320887691,1711665076685,-500.0,0.0005041,120]
[320887692,1711665076695,-500.0,0.0005041,120]
[320887693,1711665076704,-500.0,0.0005041,120]
[320887694,1711665076714,-500.0,0.0005041,120]
[320887695,1711665076726,-500.0,0.0005041,120]
[320887696,1711665076737,-500.0,0.0005041,120]
[320887697,1711665076746,-500.0,0.0005041,120]
[320887698,1711665076756,-500.0,0.0005041,120]
[320887699,1711665076766,-500.0,0.0005041,120]
[320887700,1711665076775,-500.0,0.0005041,120]
[320887701,1711665076785,-500.0,0.0005041,120]
[320887702,1711665076794,-500.0,0.0005041,120]
[320887703,1711665076805,-583.98,0.0005041,120]
[320887704,1711665076815,-500.0,0.0005041,120]
[320887705,1711665076826,-500.0,0.0005041,120]
[320887706,1711665076836,-500.0,0.0005041,120]
[320887707,1711665076845,-500.0,0.0005041,120]
[320887708,1711665076854,-627.52,0.0005041,120]
[320887709,1711665076863,-690.47,0.0005041,120]
[320887710,1711665076872,-500.0,0.0005041,120]
[320887711,1711665076882,-616.1,0.0005041,120]
[320887712,1711665076891,-645.22,0.0005041,120]
[320887713,1711665076900,-500.0,0.0005041,120]
[320887714,1711665076910,-247.46,0.0005041,120]
[320887715,1711665076919,-500.0,0.0005041,120]
[320887716,1711665076928,-500.0,0.0005041,120]
[320887717,1711665076937,-500.0,0.0005041,120]
[320887718,1711665076947,-500.0,0.0005041,120]
[320887719,1711665076957,-500.0,0.0005041,120]
[320887720,1711665076965,-500.0,0.0005041,120]
[320887721,1711665076974,-500.0,0.0005041,7]
[320887722,1711665076984,-583.93,0.0005041,120]
[320887723,1711665076993,-551.01,0.0005041,120]
[320887724,1711665077002,-500.0,0.0005041,120]
[320887725,1711665077011,-500.0,0.0005041,120]
[320887726,1711665077020,-500.0,0.0005041,120]
[320887727,1711665077029,-500.0,0.0005041,30]
[320887728,1711665077038,-403.49342407,0.0005041,120]
[320887729,1711665077048,-435.74,0.0005041,120]
[320887730,1711665077058,-500.0,0.0005041,120]
[320887731,1711665077067,-500.0,0.0005041,120]
[320887732,1711665077077,-500.0,0.0005041,120]
[320887733,1711665077088,-514.39,0.0005041,120]
[320887734,1711665077097,-500.0,0.0005041,120]
[320887735,1711665077106,-500.0,0.0005041,120]
[320887736,1711665077116,-854.61,0.0005041,120]
[320887737,1711665077125,-641.92,0.0005041,120]
[320887738,1711665077135,-710.65,0.0005041,120]
[320887739,1711665077145,-500.0,0.0005041,120]
[320887740,1711665077154,-608.34,0.0005041,120]
[320887741,1711665077163,-500.0,0.0005041,120]
[320887742,1711665077174,-500.0,0.0005041,120]
[320887743,1711665077184,-500.0,0.0005041,120]
[320887744,1711665077193,-793.97,0.0005041,120]
[320887745,1711665077202,-208.51,0.0005041,120]
[320887746,1711665077211,-500.0,0.0005041,120]
[320887747,1711665077220,-500.0,0.0005041,120]
[320887748,1711665077230,-561.46,0.0005041,120]
[320887749,1711665077240,-669.16,0.0005041,120]
[320887750,1711665077249,-500.0,0.0005041,120]
[320887751,1711665077259,-500.0,0.0005041,120]
[320887752,1711665077269,-500.0,0.0005041,120]
[320887753,1711665077278,-305.67,0.0005041,120]
[320887754,1711665077287,-500.0,0.0005041,120]
[320887755,1711665077297,-500.0,0.0005041,120]
[320887756,1711665077306,-604.1,0.0005041,120]
[320887757,1711665077316,-500.0,0.0005041,120]
[320887758,1711665077326,-319.75,0.0005041,120]
[320887759,1711665077335,-180.97,0.0005041,120]
[320887760,1711665077344,-500.0,0.0005041,120]
[320887761,1711665077354,-500.0,0.0005041,120]
[320887762,1711665077363,-616.58,0.0005041,120]
[320887763,1711665077373,-1002.52,0.0005041,120]
[320887764,1711665077382,-387.88,0.0005041,120]
[320887765,1711665077392,-500.0,0.0005041,120]
[320887766,1711665077401,-500.0,0.0005041,120]
[320887767,1711665077411,-500.0,0.0005041,120]
[320887768,1711665077420,-618.33,0.0005041,120]
[320887769,1711665077429,-500.0,0.0005041,120]
[320887770,1711665077439,-493.38,0.0005041,120]
[320887771,1711665077449,-568.64,0.0005041,120]
[320887772,1711665077458,-500.0,0.0005041,120]
[320887773,1711665077467,-500.0,0.0005041,120]
[320887774,1711665077476,-500.0,0.0005041,120]
[320887775,1711665077486,-500.0,0.0005041,120]
[320887776,1711665077496,-500.0,0.0005041,120]
[320887777,1711665077505,-500.0,0.0005041,120]
[320887778,1711665077514,-1616.48,0.0005041,120]
[320887779,1711665077524,-500.0,0.0005041,120]
[320887780,1711665077534,-291.46,0.0005041,120]
[320887781,1711665077543,-500.0,0.0005041,120]
[320887782,1711665077553,-622.38,0.0005041,120]
[320887783,1711665077563,-735.68,0.0005041,120]
[320887784,1711665077572,-2093.07,0.0005041,120]
[320887785,1711665077582,-1133.95,0.0005041,120]
[320887786,1711665077591,-500.0,0.0005041,120]
[320887787,1711665077601,-680.69,0.0005041,120]
[320887788,1711665077610,-403.29,0.0005041,120]
[320887789,1711665077620,-779.67,0.0005041,120]
[320887790,1711665077629,-430.20437518,0.0005041,120]
[320887791,1711665077638,-899.43,0.0005041,120]
[320887792,1711665077647,-516.29,0.0005041,120]
[320887793,1711665077656,-500.0,0.0005041,120]
[320887794,1711665077666,-1159.54,0.0005041,120]
[320887795,1711665077675,-4961.26,0.0005041,120]
[320887796,1711665077685,-1143.61,0.0005041,120]
[320887797,1711665077694,-500.0,0.0005041,120]
[320887798,1711665077703,-1092.72,0.0005041,120]
[320887799,1711665077713,-1575.93,0.0005041,120]
[320887800,1711665077724,-1071.92,0.0005041,120]
[320887801,1711665077735,-1127.44,0.0005041,120]
[320887802,1711665077744,-654.53,0.0005041,120]
[320887803,1711665077755,-1151.79,0.0005041,120]
[320887804,1711665077765,-747.27,0.0005041,120]
[320887805,1711665077775,-500.0,0.0005041,120]
[320887806,1711665077784,-1565.72,0.0005041,120]
[320887807,1711665077794,-566.93,0.0005041,120]
[320887808,1711665077804,-1181.34,0.0005041,120]
[320887809,1711665077815,-1858.25,0.0005041,120]
[320887810,1711665077824,-500.0,0.0005041,120]
[320887811,1711665077834,-500.0,0.0005041,120]
[320887812,1711665077846,-720.04,0.0005041,120]
[320887813,1711665077856,-500.0,0.0005041,120]
[320887814,1711665077866,-1168.39,0.0005041,120]
[320887815,1711665077876,-10017.78,0.0005041,120]
[320887816,1711665077886,-500.0,0.0005041,120]
[320887817,1711665077895,-500.0,0.0005041,120]
[320887818,1711665077905,-827.11,0.0005041,120]
[320887819,1711665077914,-1697.85,0.0005041,120]
[320887820,1711665077923,-500.0,0.0005041,120]
[320887821,1711665077932,-1828.09,0.0005041,120]
[320887822,1711665077941,-500.0,0.0005041,120]
[320887823,1711665077950,-1569.72,0.0005041,120]
[320887824,1711665077959,-660.55,0.0005041,120]
[320887825,1711665077969,-500.0,0.0005041,120]
[320887826,1711665077979,-707.06,0.0005041,120]
[320887827,1711665077989,-1030.61,0.0005041,120]
[320887828,1711665077998,-500.0,0.0005041,120]
[320887829,1711665078008,-531.68,0.0005041,120]
[320887830,1711665078017,-500.0,0.0005041,7]
[320887831,1711665078028,-2956.53,0.0005041,120]
[320887832,1711665078038,-1437.28,0.0005041,120]
[320887833,1711665078047,-500.0,0.0005041,120]
[320887834,1711665078057,-1519.15,0.0005041,120]
[320887835,1711665078066,-500.0,0.0005041,120]
[320887836,1711665078075,-915.61,0.0005041,120]
[320887837,1711665078085,-500.0,0.0005041,120]
[320887838,1711665078094,-500.0,0.0005041,120]
[320887839,1711665078104,-500.0,0.0005041,120]
[320887840,1711665078113,-505.45,0.0005041,120]
[320887841,1711665078122,-1410.16,0.0005041,120]
[320887842,1711665078131,-500.0,0.0005041,120]
[320887843,1711665078141,-500.0,0.0005041,120]
[320887844,1711665078150,-854.8,0.0005041,120]
[320887845,1711665078160,-197.34185508,0.0005041,120]
[320887846,1711665078169,-11247.68,0.0005041,120]
[320887847,1711665078178,-7400.25,0.0005041,120]
[320887848,1711665078188,-646.27,0.0005041,120]
[320887849,1711665078197,-500.0,0.0005041,120]
[320887850,1711665078206,-1025.19,0.0005041,120]
[320887851,1711665078216,-1216.32,0.0005041,120]
[320887852,1711665078225,-1040.33,0.0005041,120]
[320887853,1711665078235,-750.82,0.0005041,120]
[320887854,1711665078244,-500.0,0.0005041,120]
[320887855,1711665078253,-500.0,0.0005041,120]
[320887856,1711665078264,-500.0,0.0005041,120]
[320887857,1711665078273,-207.93,0.0005041,120]
[320887858,1711665078283,-1147.38,0.0005041,120]
[320887859,1711665078293,-1236.42,0.0005041,120]
[320887860,1711665078302,-500.0,0.0005041,120]
[320887861,1711665078311,-1517.12,0.0005041,120]
[320887862,1711665078320,-1223.0,0.0005041,120]
[320887863,1711665078329,-500.0,0.0005041,120]
[320887864,1711665078338,-1464.62,0.0005041,120]
[320887865,1711665078348,-500.0,0.0005041,120]
[320887866,1711665078357,-535.48,0.0005041,120]
[320887867,1711665078365,-500.0,0.0005041,120]
[320887868,1711665078375,-746.51,0.0005041,120]
[320887869,1711665078384,-945.77,0.0005041,120]
[320887870,1711665078393,-500.0,0.0005041,120]
[320887871,1711665078402,-500.0,0.0005041,120]
[320887872,1711665078411,-500.0,0.0005041,120]
[320887873,1711665078420,-500.0,0.0005041,120]
[320887874,1711665078429,-918.65,0.0005041,120]
[320887875,1711665078438,-500.0,0.0005041,120]
[320887876,1711665078447,-1913.45,0.0005041,120]
[320887877,1711665078456,-900.64,0.0005041,120]
[320887878,1711665078465,-782.99,0.0005041,120]
[320887879,1711665078474,-626.77,0.0005041,120]
[320887880,1711665078483,-1427.67,0.0005041,120]
[320887881,1711665078493,-500.0,0.0005041,120]
[320887882,1711665078502,-500.0,0.0005041,120]
[320887883,1711665078511,-1454.01,0.0005041,21]
[320887884,1711665078520,-500.0,0.0005041,120]
[320887885,1711665078529,-657.71,0.0005041,120]
[320887886,1711665078538,-365.56,0.0005041,120]
[320887887,1711665078547,-500.0,0.0005041,80]
[320887888,1711665078556,-837.03,0.0005041,120]
[320887889,1711665078564,-500.0,0.0005041,120]
[320887890,1711665078573,-217.84,0.0005041,120]
[320887891,1711665078582,-500.0,0.0005041,120]
[320887892,1711665078591,-528.87,0.0005041,120]
[320887893,1711665078600,-1129.46,0.0005041,120]
[320887894,1711665078609,-500.0,0.0005041,120]
[320887895,1711665078618,-500.0,0.0005041,120]